[Event "Snabbschacks-SM 2025"]
[Site "Norrköping, Sweden"]
[Date "2025.09.27"]
[Round "2.3"]
[White "Olsson, Linus"]
[Black "Jonsson, Krister"]
[Result "1/2-1/2"]
[TimeControl "25 min + 10 sec/move"]
[WhiteTitle "FM"]
[WhiteElo "2166"]
[BlackElo "2022"]

1. d4 {[%clk 00:25:18]} {[%emt 00:00:02]} Nf6 {[%clk 00:25:07]} {[%emt
00:00:14]} 2. c4 {[%clk 00:25:25]} {[%emt 00:00:02]} e6 {[%clk 00:25:15]}
{[%emt 00:00:01]} 3. g3 {[%clk 00:25:31]} {[%emt 00:00:04]} Bb4+ {[%clk
00:25:21]} {[%emt 00:00:04]} 4. Nd2 {[%clk 00:25:36]} {[%emt 00:00:04]} d5
{[%clk 00:22:48]} {[%emt 00:02:44]} 5. Bg2 {[%clk 00:25:37]} {[%emt 00:00:08]}
O-O {[%clk 00:22:44]} {[%emt 00:00:14]} 6. Qc2 {[%clk 00:25:44]} {[%emt
00:00:04]} Nc6 {[%clk 00:22:14]} {[%emt 00:00:40]} 7. Ngf3 {[%clk 00:25:43]}
{[%emt 00:00:11]} Ne4 {[%clk 00:19:44]} {[%emt 00:02:40]} 8. O-O {[%clk
00:24:38]} {[%emt 00:01:14]} f5 {[%clk 00:19:47]} {[%emt 00:00:08]} 9. c5
{[%clk 00:23:25]} {[%emt 00:01:23]} Bxd2 {[%clk 00:18:48]} {[%emt 00:01:09]} 10.
Bxd2 {[%clk 00:23:29]} {[%emt 00:00:06]} Bd7 {[%clk 00:18:27]} {[%emt
00:00:31]} 11. b4 {[%clk 00:21:42]} {[%emt 00:01:57]} Nxd2 {[%clk 00:17:57]}
{[%emt 00:00:41]} 12. Qxd2 {[%clk 00:21:47]} {[%emt 00:00:04]} a6 {[%clk
00:18:02]} {[%emt 00:00:05]} 13. a4 {[%clk 00:19:22]} {[%emt 00:02:34]} Qf6
{[%clk 00:17:04]} {[%emt 00:01:08]} 14. Qb2 {[%clk 00:18:09]} {[%emt 00:01:23]}
b6 {[%clk 00:11:56]} {[%emt 00:05:19]} 15. b5 {[%clk 00:16:51]} {[%emt
00:01:28]} Na5 {[%clk 00:12:01]} {[%emt 00:00:04]} 16. Ne5 {[%clk 00:16:48]}
{[%emt 00:00:13]} Rfd8 {[%clk 00:11:24]} {[%emt 00:00:47]} 17. Rfc1 {[%clk
00:14:52]} {[%emt 00:02:06]} Be8 {[%clk 00:10:43]} {[%emt 00:00:51]} 18. c6
{[%clk 00:12:24]} {[%emt 00:02:38]} g5 {[%clk 00:08:08]} {[%emt 00:02:45]} 19.
e3 {[%clk 00:12:13]} {[%emt 00:00:22]} Bg6 {[%clk 00:06:58]} {[%emt 00:01:20]}
20. Bf1 {[%clk 00:11:56]} {[%emt 00:00:27]} axb5 {[%clk 00:06:59]} {[%emt
00:00:10]} 21. axb5 {[%clk 00:12:02]} {[%emt 00:00:03]} f4 {[%clk 00:06:50]}
{[%emt 00:00:19]} 22. exf4 {[%clk 00:11:14]} {[%emt 00:00:57]} gxf4 {[%clk
00:06:58]} {[%emt 00:00:02]} 23. Ra3 {[%clk 00:10:20]} {[%emt 00:01:04]} Be4
{[%clk 00:06:43]} {[%emt 00:00:26]} 24. Qd2 {[%clk 00:09:56]} {[%emt 00:00:34]}
Nc4 {[%clk 00:05:35]} {[%emt 00:01:19]} 25. Nxc4 {[%clk 00:09:37]} {[%emt
00:00:28]} dxc4 {[%clk 00:05:42]} {[%emt 00:00:03]} 26. Rxa8 {[%clk 00:09:39]}
{[%emt 00:00:09]} Rxa8 {[%clk 00:05:51]} 27. Qxf4 {[%clk 00:06:01]} {[%emt
00:03:48]} Qxf4 {[%clk 00:03:50]} {[%emt 00:02:09]} 28. gxf4 {[%clk 00:06:09]}
{[%emt 00:00:02]} Bd3 {[%clk 00:03:43]} {[%emt 00:00:18]} 29. Bxd3 {[%clk
00:05:51]} {[%emt 00:00:28]} cxd3 {[%clk 00:03:52]} {[%emt 00:00:02]} 30. Rd1
{[%clk 00:05:58]} {[%emt 00:00:02]} Ra5 {[%clk 00:03:44]} {[%emt 00:00:19]} 31.
Rxd3 {[%clk 00:03:33]} {[%emt 00:02:35]} Rxb5 {[%clk 00:03:52]} {[%emt
00:00:01]} 32. Kg2 {[%clk 00:03:38]} {[%emt 00:00:05]} Kf7 {[%clk 00:03:31]}
{[%emt 00:00:31]} 33. Kf3 {[%clk 00:03:07]} {[%emt 00:00:41]} Ke7 {[%clk
00:03:30]} {[%emt 00:00:10]} 34. Ke4 {[%clk 00:03:11]} {[%emt 00:00:07]} Kd6
{[%clk 00:03:24]} {[%emt 00:00:16]} 35. Rc3 {[%clk 00:03:15]} {[%emt 00:00:06]}
Rh5 {[%clk 00:03:18]} {[%emt 00:00:16]} 36. h3 {[%clk 00:03:23]} {[%emt
00:00:02]} b5 {[%clk 00:03:05]} {[%emt 00:00:24]} 37. f3 {[%clk 00:02:39]}
{[%emt 00:00:54]} b4 {[%clk 00:03:04]} {[%emt 00:00:10]} 38. Rb3 {[%clk
00:02:19]} {[%emt 00:00:30]} Rb5 {[%clk 00:03:12]} {[%emt 00:00:02]} 39. Kd3
{[%clk 00:02:24]} {[%emt 00:00:05]} Kxc6 {[%clk 00:03:19]} {[%emt 00:00:04]} 40.
Kc4 {[%clk 00:02:32]} {[%emt 00:00:02]} Rf5 {[%clk 00:02:50]} {[%emt 00:00:39]}
41. Rxb4 {[%clk 00:02:13]} {[%emt 00:00:30]} Rxf4 {[%clk 00:02:57]} {[%emt
00:00:03]} 42. Rb3 {[%clk 00:02:20]} {[%emt 00:00:03]} Rh4 {[%clk 00:03:02]}
{[%emt 00:00:05]} 43. Kd3 {[%clk 00:02:19]} {[%emt 00:00:10]} Rxh3 {[%clk
00:03:11]} {[%emt 00:00:02]} 44. Ke4 {[%clk 00:02:27]} {[%emt 00:00:02]} Kd6
{[%clk 00:02:53]} {[%emt 00:00:27]} 45. Rb8 {[%clk 00:02:33]} {[%emt 00:00:04]}
Rh4+ {[%clk 00:02:58]} {[%emt 00:00:05]} 46. f4 {[%clk 00:02:42]} {[%emt
00:00:02]} h5 {[%clk 00:03:05]} {[%emt 00:00:03]} 47. Rh8 {[%clk 00:02:42]}
{[%emt 00:00:10]} c6 {[%clk 00:03:07]} {[%emt 00:00:08]} 48. Rh6 {[%clk
00:02:47]} {[%emt 00:00:04]} Ke7 {[%clk 00:03:06]} {[%emt 00:00:12]} 49. Ke5
{[%clk 00:02:54]} {[%emt 00:00:04]} Kf7 {[%clk 00:02:29]} {[%emt 00:00:47]} 50.
Rf6+ {[%clk 00:02:53]} {[%emt 00:00:10]} Kg7 {[%clk 00:02:37]} {[%emt
00:00:02]} 51. Rxe6 {[%clk 00:03:00]} {[%emt 00:00:03]} Rh1 {[%clk 00:02:40]}
{[%emt 00:00:07]} 52. Rxc6 {[%clk 00:03:02]} {[%emt 00:00:08]} h4 {[%clk
00:02:48]} 53. Rc7+ {[%clk 00:02:43]} {[%emt 00:00:29]} Kg8 {[%clk 00:02:47]}
{[%emt 00:00:12]} 54. d5 {[%clk 00:02:09]} {[%emt 00:00:44]} h3 {[%clk
00:02:55]} {[%emt 00:00:02]} 55. Kd6 {[%clk 00:02:13]} {[%emt 00:00:06]} Rg1
{[%clk 00:02:46]} {[%emt 00:00:19]} 56. Rc2 {[%clk 00:01:45]} {[%emt 00:00:38]}
Rg2 {[%clk 00:02:53]} {[%emt 00:00:03]} 57. Rc3 {[%clk 00:01:53]} {[%emt
00:00:02]} h2 {[%clk 00:02:57]} {[%emt 00:00:06]} 58. Rh3 {[%clk 00:02:01]}
{[%emt 00:00:02]} Rf2 {[%clk 00:02:59]} {[%emt 00:00:08]} 59. Kd7 {[%clk
00:02:02]} {[%emt 00:00:09]} Kf7 {[%clk 00:03:00]} {[%emt 00:00:09]} 60. d6
{[%clk 00:02:08]} {[%emt 00:00:04]} Kf6 {[%clk 00:02:52]} {[%emt 00:00:18]} 61.
Kd8 {[%clk 00:02:07]} {[%emt 00:00:11]} Kf5 {[%clk 00:02:37]} {[%emt 00:00:25]}
62. Rh4 {[%clk 00:02:05]} {[%emt 00:00:12]} Rd2 {[%clk 00:01:59]} {[%emt
00:00:48]} 63. d7 {[%clk 00:02:13]} {[%emt 00:00:02]} Re2 {[%clk 00:01:49]}
{[%emt 00:00:21]} 64. Kc7 {[%clk 00:02:03]} {[%emt 00:00:19]} Rc2+ {[%clk
00:01:57]} {[%emt 00:00:02]} 65. Kd6 {[%clk 00:02:08]} {[%emt 00:00:05]} Rd2+
{[%clk 00:02:03]} {[%emt 00:00:05]} 66. Ke7 {[%clk 00:02:14]} {[%emt 00:00:04]}
Re2+ {[%clk 00:02:10]} {[%emt 00:00:03]} 67. Kf7 {[%clk 00:01:49]} {[%emt
00:00:34]} Rd2 {[%clk 00:02:18]} {[%emt 00:00:02]} 68. Ke8 {[%clk 00:01:24]}
{[%emt 00:00:36]} Re2+ {[%clk 00:02:26]} {[%emt 00:00:02]} 69. Kd8 {[%clk
00:01:29]} {[%emt 00:00:05]} Rd2 {[%clk 00:02:33]} {[%emt 00:00:03]} 70. Ke8
{[%clk 00:00:36]} {[%emt 00:01:04]} Re2+ {[%clk 00:02:42]} 71. Kf8 {[%clk
00:00:28]} {[%emt 00:00:17]} Rd2 {[%clk 00:02:50]} {[%emt 00:00:02]} 72. Ke8
{[%clk 00:00:24]} {[%emt 00:00:14]} Re2+ {[%clk 00:02:59]} 73. Kf8 {[%clk
00:00:32]} {[%emt 00:00:02]} 1/2-1/2

[Event "Snabbschacks-SM 2025"]
[Site "Norrköping, Sweden"]
[Date "2025.09.27"]
[Round "3.9"]
[White "Jonsson, Krister"]
[Black "Bohman Karlholm, Adrian"]
[Result "1/2-1/2"]
[TimeControl "25 min + 10 sec/move"]
[WhiteElo "2022"]
[BlackElo "2102"]

1. d4 {[%clk 00:25:15]} {[%emt 00:00:04]} Nf6 {[%clk 00:25:17]} {[%emt
00:00:03]} 2. c4 {[%clk 00:25:23]} {[%emt 00:00:03]} b6 {[%clk 00:25:25]}
{[%emt 00:00:03]} 3. Nc3 {[%clk 00:25:21]} {[%emt 00:00:11]} Bb7 {[%clk
00:25:32]} {[%emt 00:00:02]} 4. Nf3 {[%clk 00:24:42]} {[%emt 00:00:49]} e6
{[%clk 00:25:38]} {[%emt 00:00:04]} 5. Bg5 {[%clk 00:24:39]} {[%emt 00:00:13]}
h6 {[%clk 00:25:38]} {[%emt 00:00:10]} 6. Bh4 {[%clk 00:24:48]} {[%emt
00:00:02]} Be7 {[%clk 00:24:45]} {[%emt 00:01:03]} 7. e3 {[%clk 00:24:49]}
{[%emt 00:00:09]} d5 {[%clk 00:24:14]} {[%emt 00:00:41]} 8. cxd5 {[%clk
00:23:42]} {[%emt 00:01:18]} Nxd5 {[%clk 00:24:08]} {[%emt 00:00:15]} 9. Bxe7
{[%clk 00:23:33]} {[%emt 00:00:19]} Qxe7 {[%clk 00:24:13]} {[%emt 00:00:04]} 10.
Nxd5 {[%clk 00:18:51]} {[%emt 00:04:53]} Bxd5 {[%clk 00:24:15]} {[%emt
00:00:08]} 11. Bd3 {[%clk 00:18:53]} {[%emt 00:00:08]} O-O {[%clk 00:23:05]}
{[%emt 00:01:19]} 12. O-O {[%clk 00:18:58]} {[%emt 00:00:05]} Nd7 {[%clk
00:22:40]} {[%emt 00:00:36]} 13. Qe2 {[%clk 00:17:02]} {[%emt 00:02:06]} e5
{[%clk 00:21:27]} {[%emt 00:01:23]} 14. e4 {[%clk 00:16:32]} {[%emt 00:00:40]}
Bb7 {[%clk 00:20:23]} {[%emt 00:01:13]} 15. Rac1 {[%clk 00:15:11]} {[%emt
00:01:31]} c6 {[%clk 00:18:51]} {[%emt 00:01:42]} 16. Bb1 {[%clk 00:12:36]}
{[%emt 00:02:45]} Rad8 {[%clk 00:17:12]} {[%emt 00:01:49]} 17. Rfd1 {[%clk
00:12:14]} {[%emt 00:00:33]} g6 {[%clk 00:16:15]} {[%emt 00:01:07]} 18. a3
{[%clk 00:09:54]} {[%emt 00:02:30]} Rfe8 {[%clk 00:13:27]} {[%emt 00:02:57]} 19.
Qe3 {[%clk 00:05:02]} {[%emt 00:05:02]} Kg7 {[%clk 00:13:19]} {[%emt 00:00:19]}
20. b4 {[%clk 00:05:08]} {[%emt 00:00:04]} exd4 {[%clk 00:09:56]} {[%emt
00:03:33]} 21. Qxd4+ {[%clk 00:05:14]} {[%emt 00:00:04]} f6 {[%clk 00:07:47]}
{[%emt 00:02:18]} 22. Qc4 {[%clk 00:04:10]} {[%emt 00:01:14]} Ne5 {[%clk
00:07:31]} {[%emt 00:00:26]} 23. Nxe5 {[%clk 00:04:11]} {[%emt 00:00:09]} Qxe5
{[%clk 00:07:38]} {[%emt 00:00:03]} 24. f3 {[%clk 00:03:57]} {[%emt 00:00:25]}
Qf4 {[%clk 00:06:58]} {[%emt 00:00:50]} 25. Ba2 {[%clk 00:03:39]} {[%emt
00:00:28]} Qc7 {[%clk 00:06:30]} {[%emt 00:00:37]} 26. g3 {[%clk 00:03:05]}
{[%emt 00:00:45]} h5 {[%clk 00:06:22]} {[%emt 00:00:17]} 27. Kg2 {[%clk
00:03:13]} {[%emt 00:00:02]} Bc8 {[%clk 00:04:48]} {[%emt 00:01:44]} 28. Qc2
{[%clk 00:02:35]} {[%emt 00:00:48]} h4 {[%clk 00:04:13]} {[%emt 00:00:45]} 29.
Rxd8 {[%clk 00:02:36]} {[%emt 00:00:10]} Rxd8 {[%clk 00:04:21]} 30. Rd1 {[%clk
00:02:45]} {[%emt 00:00:02]} hxg3 {[%clk 00:02:53]} {[%emt 00:01:38]} 31. hxg3
{[%clk 00:02:53]} {[%emt 00:00:01]} Rh8 {[%clk 00:02:40]} {[%emt 00:00:23]} 32.
Qc4 {[%clk 00:02:31]} {[%emt 00:00:33]} Bh3+ {[%clk 00:02:12]} {[%emt
00:00:37]} 33. Kf2 {[%clk 00:02:38]} {[%emt 00:00:03]} Bc8 {[%clk 00:02:18]}
{[%emt 00:00:04]} 34. Kg2 {[%clk 00:02:32]} {[%emt 00:00:16]} Bh3+ {[%clk
00:02:02]} {[%emt 00:00:25]} 35. Kf2 {[%clk 00:02:41]} {[%emt 00:00:02]} Bc8
{[%clk 00:01:53]} {[%emt 00:00:20]} 1/2-1/2

[Event "Snabbschacks-SM 2025"]
[Site "Norrköping, Sweden"]
[Date "2025.09.27"]
[Round "5.5"]
[White "Bjorklund, Thomas"]
[Black "Livner, Anders"]
[Result "0-1"]
[TimeControl "25 min + 10 sec/move"]
[BlackTitle "FM"]
[WhiteElo "2103"]
[BlackElo "2292"]

1. e4 {[%clk 00:25:17]} {[%emt 00:00:02]} c6 {[%clk 00:25:20]} 2. c3 {[%clk
00:25:26]} {[%emt 00:00:01]} d5 {[%clk 00:25:21]} {[%emt 00:00:09]} 3. exd5
{[%clk 00:25:34]} {[%emt 00:00:02]} cxd5 {[%clk 00:25:27]} {[%emt 00:00:04]} 4.
d4 {[%clk 00:25:43]} Nf6 {[%clk 00:24:57]} {[%emt 00:00:39]} 5. Nf3 {[%clk
00:25:49]} {[%emt 00:00:04]} Nc6 {[%clk 00:24:27]} {[%emt 00:00:41]} 6. Bd3
{[%clk 00:25:48]} {[%emt 00:00:10]} Bg4 {[%clk 00:24:19]} {[%emt 00:00:18]} 7.
h3 {[%clk 00:25:54]} {[%emt 00:00:04]} Bh5 {[%clk 00:23:32]} {[%emt 00:00:58]}
8. Bf4 {[%clk 00:25:59]} {[%emt 00:00:04]} e6 {[%clk 00:23:26]} {[%emt
00:00:16]} 9. Nbd2 {[%clk 00:26:05]} {[%emt 00:00:04]} Bd6 {[%clk 00:23:31]}
{[%emt 00:00:05]} 10. Bxd6 {[%clk 00:26:07]} {[%emt 00:00:08]} Qxd6 {[%clk
00:23:40]} {[%emt 00:00:01]} 11. Qb3 {[%clk 00:26:02]} {[%emt 00:00:16]} Rb8
{[%clk 00:21:43]} {[%emt 00:02:06]} 12. O-O {[%clk 00:26:00]} {[%emt 00:00:12]}
O-O {[%clk 00:21:51]} {[%emt 00:00:02]} 13. Rfe1 {[%clk 00:26:06]} {[%emt
00:00:04]} Qc7 {[%clk 00:20:50]} {[%emt 00:01:11]} 14. Rac1 {[%clk 00:26:07]}
{[%emt 00:00:09]} b5 {[%clk 00:20:04]} {[%emt 00:00:56]} 15. Qc2 {[%clk
00:25:37]} {[%emt 00:00:40]} Bg6 {[%clk 00:18:18]} {[%emt 00:01:57]} 16. Ne5
{[%clk 00:25:19]} {[%emt 00:00:27]} Nxe5 {[%clk 00:18:11]} {[%emt 00:00:17]} 17.
Rxe5 {[%clk 00:25:26]} {[%emt 00:00:04]} b4 {[%clk 00:17:34]} {[%emt 00:00:47]}
18. Bxg6 {[%clk 00:25:30]} {[%emt 00:00:05]} hxg6 {[%clk 00:17:43]} {[%emt
00:00:02]} 19. Re3 {[%clk 00:25:11]} {[%emt 00:00:28]} Rfc8 {[%clk 00:17:44]}
{[%emt 00:00:09]} 20. Nb3 {[%clk 00:25:13]} {[%emt 00:00:08]} Ne4 {[%clk
00:17:14]} {[%emt 00:00:40]} 21. Nd2 {[%clk 00:24:06]} {[%emt 00:01:18]} Nd6
{[%clk 00:17:08]} {[%emt 00:00:16]} 22. Rf3 {[%clk 00:23:55]} {[%emt 00:00:20]}
a5 {[%clk 00:13:35]} {[%emt 00:03:43]} 23. Qd1 {[%clk 00:21:56]} {[%emt
00:02:09]} Qa7 {[%clk 00:11:03]} {[%emt 00:02:42]} 24. Nb3 {[%clk 00:21:40]}
{[%emt 00:00:27]} a4 {[%clk 00:10:22]} {[%emt 00:00:51]} 25. Nc5 {[%clk
00:21:42]} {[%emt 00:00:08]} a3 {[%clk 00:10:19]} {[%emt 00:00:13]} 26. b3
{[%clk 00:21:41]} {[%emt 00:00:10]} bxc3 {[%clk 00:09:05]} {[%emt 00:01:24]} 27.
Rfxc3 {[%clk 00:21:37]} {[%emt 00:00:14]} Rb4 {[%clk 00:08:44]} {[%emt
00:00:31]} 28. Qd2 {[%clk 00:20:02]} {[%emt 00:01:45]} Nf5 {[%clk 00:07:24]}
{[%emt 00:01:30]} 29. Rd3 {[%emt 00:00:19]} Qb6 30. Rdc3 Rd8 31. g4 Nd6 32. Qf4
Nb5 33. Rf3 Qa7 34. Rd1 Re8 35. Re3 Rc8 36. Qe5 Nxd4 37. Rxd4 Qxc5 38. Rdd3 Qb6
39. h4 Rxg4+ 40. Rg3 Rxg3+ 41. Rxg3 Qb4 42. h5 Rc1+ 43. Kh2 Qh4+ 44. Kg2 Qh1#
0-1

[Event "Snabbschacks-SM 2025"]
[Site "Norrköping, Sweden"]
[Date "2025.09.27"]
[Round "2.4"]
[White "Dingertz, Erik"]
[Black "Religa, Marek"]
[Result "0-1"]
[TimeControl "25 min + 10 sec/move"]
[WhiteElo "2112"]
[BlackElo "2207"]

1. d4 {[%clk 00:25:16]} {[%emt 00:00:03]} Nf6 {[%clk 00:25:19]} {[%emt
00:00:03]} 2. c4 {[%clk 00:25:24]} g6 {[%clk 00:25:28]} {[%emt 00:00:01]} 3.
Nc3 {[%clk 00:25:31]} {[%emt 00:00:04]} Bg7 {[%clk 00:25:37]} {[%emt 00:00:01]}
4. e4 {[%clk 00:25:33]} {[%emt 00:00:08]} d6 {[%clk 00:25:46]} {[%emt
00:00:02]} 5. Nf3 {[%clk 00:25:40]} {[%emt 00:00:03]} O-O {[%clk 00:25:51]}
{[%emt 00:00:05]} 6. Be2 {[%clk 00:25:48]} e5 {[%clk 00:25:59]} {[%emt
00:00:03]} 7. Be3 {[%clk 00:25:55]} {[%emt 00:00:03]} exd4 {[%clk 00:26:05]}
{[%emt 00:00:04]} 8. Nxd4 {[%clk 00:26:03]} {[%emt 00:00:01]} Re8 {[%clk
00:26:13]} {[%emt 00:00:03]} 9. f3 {[%clk 00:26:12]} c6 {[%clk 00:26:22]} 10.
Bf2 {[%clk 00:26:21]} d5 {[%clk 00:26:30]} {[%emt 00:00:02]} 11. exd5 {[%clk
00:26:29]} {[%emt 00:00:02]} cxd5 {[%clk 00:26:39]} {[%emt 00:00:01]} 12. O-O
{[%clk 00:26:37]} {[%emt 00:00:02]} Nc6 {[%clk 00:26:49]} {[%emt 00:00:01]} 13.
c5 {[%clk 00:26:46]} Bf8 {[%clk 00:26:58]} 14. Ndb5 {[%clk 00:23:40]} {[%emt
00:03:16]} a6 {[%clk 00:26:34]} {[%emt 00:00:34]} 15. Nd6 {[%clk 00:23:48]}
{[%emt 00:00:02]} Bxd6 {[%clk 00:26:30]} {[%emt 00:00:14]} 16. cxd6 {[%clk
00:23:56]} {[%emt 00:00:01]} Qxd6 {[%clk 00:26:30]} {[%emt 00:00:10]} 17. Ne4
{[%clk 00:21:36]} {[%emt 00:02:31]} Nxe4 {[%clk 00:25:48]} {[%emt 00:00:52]} 18.
fxe4 {[%clk 00:21:44]} {[%emt 00:00:01]} Be6 {[%clk 00:23:53]} {[%emt
00:02:05]} 19. Bf3 {[%clk 00:18:06]} {[%emt 00:03:48]} Rad8 {[%clk 00:21:17]}
{[%emt 00:02:46]} 20. Bb6 {[%clk 00:16:15]} {[%emt 00:02:01]} dxe4 {[%clk
00:18:08]} {[%emt 00:03:20]} 21. Bxd8 {[%clk 00:16:22]} {[%emt 00:00:02]} Qc5+
{[%clk 00:18:14]} {[%emt 00:00:04]} 22. Kh1 {[%clk 00:16:25]} {[%emt 00:00:06]}
Rxd8 {[%clk 00:18:10]} {[%emt 00:00:15]} 23. Qe1 {[%clk 00:15:25]} {[%emt
00:01:10]} exf3 {[%clk 00:18:17]} {[%emt 00:00:03]} 24. Rxf3 {[%clk 00:15:34]}
{[%emt 00:00:01]} Qd4 {[%clk 00:17:50]} {[%emt 00:00:37]} 25. h3 {[%clk
00:15:04]} {[%emt 00:00:39]} Qxb2 {[%clk 00:17:03]} {[%emt 00:00:56]} 26. Rb1
{[%clk 00:15:12]} {[%emt 00:00:03]} Qd2 {[%clk 00:15:51]} {[%emt 00:01:22]} 27.
Qg3 {[%clk 00:14:27]} {[%emt 00:00:55]} Rd7 {[%clk 00:14:04]} {[%emt 00:01:58]}
28. Rf2 {[%clk 00:13:56]} {[%emt 00:00:41]} Qd5 {[%clk 00:13:53]} {[%emt
00:00:21]} 29. Re1 {[%clk 00:13:42]} {[%emt 00:00:23]} Ne7 {[%clk 00:11:47]}
{[%emt 00:02:16]} 30. Re5 {[%clk 00:10:11]} {[%emt 00:03:41]} Qd1+ {[%clk
00:11:48]} {[%emt 00:00:09]} 31. Kh2 {[%clk 00:10:20]} Qd6 {[%clk 00:11:46]}
{[%emt 00:00:13]} 32. h4 {[%clk 00:08:53]} {[%emt 00:01:37]} Nc6 {[%clk
00:11:28]} {[%emt 00:00:28]} 33. Rg5 {[%clk 00:08:56]} {[%emt 00:00:06]} Qxg3+
{[%clk 00:11:24]} {[%emt 00:00:15]} 34. Rxg3 {[%clk 00:08:58]} {[%emt
00:00:07]} Rd4 {[%clk 00:11:24]} {[%emt 00:00:10]} 0-1

[Event "Snabbschacks-SM 2025"]
[Site "Norrköping, Sweden"]
[Date "2025.09.27"]
[Round "3.10"]
[White "Eriksson, Kristian"]
[Black "Fors, Klas"]
[Result "0-1"]
[TimeControl "25 min + 10 sec/move"]
[WhiteElo "2033"]
[BlackElo "2063"]

1. e4 {[%clk 00:25:16]} {[%emt 00:00:03]} e5 {[%clk 00:25:18]} {[%emt
00:00:03]} 2. Nf3 {[%clk 00:25:23]} {[%emt 00:00:03]} Nc6 {[%clk 00:25:26]}
{[%emt 00:00:02]} 3. Bb5 {[%clk 00:25:28]} {[%emt 00:00:05]} Nf6 {[%clk
00:25:33]} {[%emt 00:00:03]} 4. Qe2 {[%clk 00:25:07]} {[%emt 00:00:31]} d6
{[%clk 00:22:16]} {[%emt 00:03:27]} 5. d4 {[%clk 00:24:39]} {[%emt 00:00:37]}
exd4 {[%clk 00:22:20]} {[%emt 00:00:07]} 6. Nxd4 {[%clk 00:24:29]} {[%emt
00:00:20]} Bd7 {[%clk 00:22:28]} {[%emt 00:00:01]} 7. Nxc6 {[%clk 00:24:02]}
{[%emt 00:00:38]} bxc6 {[%clk 00:22:26]} {[%emt 00:00:12]} 8. Bd3 {[%clk
00:24:09]} {[%emt 00:00:03]} Be7 {[%clk 00:22:32]} {[%emt 00:00:04]} 9. Nc3
{[%clk 00:23:39]} {[%emt 00:00:40]} O-O {[%clk 00:22:27]} {[%emt 00:00:14]} 10.
O-O {[%clk 00:22:00]} {[%emt 00:01:49]} Re8 {[%clk 00:19:32]} {[%emt 00:03:06]}
11. f4 {[%clk 00:20:44]} {[%emt 00:01:26]} Bf8 {[%clk 00:19:26]} {[%emt
00:00:15]} 12. Qf2 {[%clk 00:19:16]} {[%emt 00:01:38]} Qb8 {[%clk 00:18:52]}
{[%emt 00:00:45]} 13. b3 {[%clk 00:18:44]} {[%emt 00:00:43]} Qb6 {[%clk
00:18:42]} {[%emt 00:00:19]} 14. Be3 {[%clk 00:17:49]} {[%emt 00:01:05]} Qb4
{[%clk 00:18:39]} {[%emt 00:00:13]} 15. Bd2 {[%clk 00:17:06]} {[%emt 00:00:52]}
Qb6 {[%clk 00:18:32]} {[%emt 00:00:17]} 16. h3 {[%clk 00:15:20]} {[%emt
00:01:56]} Qxf2+ {[%clk 00:18:11]} {[%emt 00:00:32]} 17. Rxf2 {[%clk 00:15:12]}
{[%emt 00:00:18]} c5 {[%clk 00:18:13]} {[%emt 00:00:08]} 18. Re1 {[%clk
00:14:46]} {[%emt 00:00:35]} Bc6 {[%clk 00:18:16]} {[%emt 00:00:08]} 19. Rfe2
{[%clk 00:14:42]} {[%emt 00:00:14]} Nd7 {[%clk 00:15:07]} {[%emt 00:03:19]} 20.
Bb5 {[%clk 00:13:33]} {[%emt 00:01:20]} Bxb5 {[%clk 00:14:08]} {[%emt
00:01:09]} 21. Nxb5 {[%clk 00:13:40]} {[%emt 00:00:02]} Rec8 {[%clk 00:14:14]}
{[%emt 00:00:03]} 22. e5 {[%clk 00:12:30]} {[%emt 00:01:21]} a6 {[%clk
00:12:49]} {[%emt 00:01:36]} 23. Nc3 {[%clk 00:12:17]} {[%emt 00:00:22]} Nb6
{[%clk 00:12:26]} {[%emt 00:00:34]} 24. a4 {[%clk 00:12:04]} {[%emt 00:00:23]}
a5 {[%clk 00:11:54]} {[%emt 00:00:41]} 25. Nb5 {[%clk 00:11:15]} {[%emt
00:00:59]} c4 {[%clk 00:11:43]} {[%emt 00:00:21]} 26. g3 {[%clk 00:10:03]}
{[%emt 00:01:22]} cxb3 {[%clk 00:11:18]} {[%emt 00:00:35]} 27. cxb3 {[%clk
00:10:10]} {[%emt 00:00:04]} dxe5 {[%clk 00:11:00]} {[%emt 00:00:28]} 28. Rxe5
{[%clk 00:09:46]} {[%emt 00:00:33]} Nd7 {[%clk 00:11:01]} {[%emt 00:00:08]} 29.
Rd5 {[%clk 00:08:22]} {[%emt 00:01:34]} Nc5 {[%clk 00:10:57]} {[%emt 00:00:15]}
30. Nd4 {[%clk 00:07:34]} {[%emt 00:00:57]} c6 {[%clk 00:08:54]} {[%emt
00:02:14]} 31. Rh5 {[%clk 00:07:37]} {[%emt 00:00:07]} g6 {[%clk 00:08:38]}
{[%emt 00:00:26]} 32. Rh4 {[%clk 00:07:16]} {[%emt 00:00:30]} Bg7 {[%clk
00:08:33]} {[%emt 00:00:15]} 33. Bc3 {[%clk 00:06:02]} {[%emt 00:01:24]} Nxb3
{[%clk 00:08:24]} {[%emt 00:00:20]} 34. Nxb3 {[%clk 00:05:47]} {[%emt
00:00:24]} Bxc3 {[%clk 00:08:30]} {[%emt 00:00:05]} 35. Rc1 {[%clk 00:04:18]}
{[%emt 00:01:39]} Bf6 {[%clk 00:08:33]} {[%emt 00:00:08]} 36. Rg4 {[%clk
00:04:24]} {[%emt 00:00:04]} h5 {[%clk 00:08:16]} {[%emt 00:00:27]} 37. Rg5
{[%clk 00:04:33]} Bxg5 {[%clk 00:08:24]} {[%emt 00:00:02]} 38. fxg5 {[%clk
00:04:42]} Rcb8 {[%clk 00:07:55]} {[%emt 00:00:39]} 39. Nc5 {[%clk 00:04:38]}
{[%emt 00:00:14]} Rb2 {[%clk 00:07:56]} {[%emt 00:00:09]} 40. Nd7 {[%clk
00:04:23]} {[%emt 00:00:25]} Rd8 {[%clk 00:07:44]} {[%emt 00:00:21]} 41. Nf6+
{[%clk 00:04:15]} {[%emt 00:00:19]} Kg7 {[%clk 00:07:46]} {[%emt 00:00:08]} 42.
h4 {[%clk 00:03:25]} {[%emt 00:00:59]} Rdd2 {[%clk 00:07:47]} {[%emt 00:00:10]}
0-1